[Event "Titled Tuesday Blitz June 6 Late 2023"]
[White "campochess"]
[Black "Sarkar, Justin"]
[BlackFideId "2010011"]
[WhiteElo "2163"]
[BlackElo "2151"]
[Result "1-0"]
[Round "10"]
[TimeControl "180+2"]
[Date "2023.06.07"]
[WhiteClock "0:00:53"]
[BlackClock "0:00:02"]
[Board "99"]

1. e4 {[%clk 0:02:59]}  c5 {[%clk 0:02:42]} 2. Na3 {[%clk 0:02:56]}  d6 {[%clk 0:02:39]} 3. c3 {[%clk 0:02:55]}  Nf6 {[%clk 0:02:38]} 4. Nf3 {[%clk 0:02:55]}  g6 {[%clk 0:02:37]} 5. Be2 {[%clk 0:02:55]}  Bg7 {[%clk 0:02:36]} 6. O-O {[%clk 0:02:55]}  O-O {[%clk 0:02:36]} 7. d3 {[%clk 0:02:55]}  Nc6 {[%clk 0:02:34]} 8. Bg5 {[%clk 0:02:53]}  h6 {[%clk 0:02:33]} 9. Bd2 {[%clk 0:02:51]}  e5 {[%clk 0:02:27]} 10. Ne1 {[%clk 0:02:48]}  d5 {[%clk 0:02:26]} 11. Qc2 {[%clk 0:02:43]}  Be6 {[%clk 0:02:18]} 12. f4 {[%clk 0:02:40]}  exf4 {[%clk 0:02:12]} 13. Bxf4 {[%clk 0:02:40]}  dxe4 {[%clk 0:01:55]} 14. dxe4 {[%clk 0:02:38]}  Nd7 {[%clk 0:01:54]} 15. Rd1 {[%clk 0:02:34]}  Re8 {[%clk 0:01:48]} 16. Nb5 {[%clk 0:02:33]}  Be5 {[%clk 0:01:39]} 17. Nd6 {[%clk 0:02:13]}  Bxf4 {[%clk 0:01:32]} 18. Rxf4 {[%clk 0:02:09]}  Qg5 {[%clk 0:01:19]} 19. Qd2 {[%clk 0:02:01]}  Re7 {[%clk 0:00:58]} 20. Nf3 {[%clk 0:01:59]}  Qh5 {[%clk 0:00:48]} 21. Nd4 {[%clk 0:01:41]}  Qe5 {[%clk 0:00:38]} 22. Nxe6 {[%clk 0:01:36]}  Qxe6 {[%clk 0:00:35]} 23. Bg4 {[%clk 0:01:33]}  Qe5 {[%clk 0:00:30]} 24. Nc4 {[%clk 0:01:31]}  Qg5 {[%clk 0:00:22]} 25. h4 {[%clk 0:01:22]}  Qxh4 {[%clk 0:00:16]} 26. Bxd7 {[%clk 0:01:21]}  Qg5 {[%clk 0:00:15]} 27. Bxc6 {[%clk 0:01:17]}  bxc6 {[%clk 0:00:15]} 28. e5 {[%clk 0:01:13]}  Rae8 {[%clk 0:00:13]} 29. Re4 {[%clk 0:01:12]}  Qg3 {[%clk 0:00:11]} 30. Rde1 {[%clk 0:01:07]}  h5 {[%clk 0:00:10]} 31. Qf2 {[%clk 0:01:04]}  Qg5 {[%clk 0:00:07]} 32. Qxc5 {[%clk 0:01:00]}  Rd7 {[%clk 0:00:05]} 33. Nd6 {[%clk 0:00:56]}  Red8 {[%clk 0:00:02]} 34. Qxc6 {[%clk 0:00:53]} 1-0


[Site "https://www.chess.com"]

[Event "Titled Tuesday Blitz June 6 Late 2023"]
[White "Torres Dominguez, David"]
[Black "el_sporco"]
[WhiteFideId "2220857"]
[WhiteElo "1999"]
[BlackElo "2401"]
[Result "1-0"]
[Round "10"]
[TimeControl "180+2"]
[Date "2023.06.07"]
[WhiteClock "0:02:01"]
[BlackClock "0:02:17"]
[Board "102"]

1. e4 {[%clk 0:02:54]}  e5 {[%clk 0:02:58]} 2. Bc4 {[%clk 0:02:53]}  Nf6 {[%clk 0:02:57]} 3. Nc3 {[%clk 0:02:53]}  Nxe4 {[%clk 0:02:57]} 4. Qh5 {[%clk 0:02:52]}  Nd6 {[%clk 0:02:57]} 5. Qxe5+ {[%clk 0:02:53]}  Be7 {[%clk 0:02:57]} 6. Qxg7 {[%clk 0:02:53]}  Bf6 {[%clk 0:02:55]} 7. Qg4 {[%clk 0:02:52]}  Nc6 {[%clk 0:02:45]} 8. Bb3 {[%clk 0:02:45]}  Ne5 {[%clk 0:02:44]} 9. Qg3 {[%clk 0:02:38]}  Nf5 {[%clk 0:02:43]} 10. Qf4 {[%clk 0:02:33]}  d6 {[%clk 0:02:39]} 11. Nge2 {[%clk 0:02:34]}  Bg5 {[%clk 0:02:33]} 12. Qe4 {[%clk 0:02:25]}  O-O {[%clk 0:02:29]} 13. d4 {[%clk 0:02:21]}  Ng6 {[%clk 0:02:26]} 14. Bxg5 {[%clk 0:02:16]}  Qxg5 {[%clk 0:02:25]} 15. O-O {[%clk 0:02:12]}  Bd7 {[%clk 0:02:22]} 16. Ng3 {[%clk 0:02:10]}  Nfh4 {[%clk 0:02:19]} 17. f4 {[%clk 0:02:06]}  Qg4 {[%clk 0:02:18]} 18. f5 {[%clk 0:02:04]}  Qxe4 {[%clk 0:02:17]} 19. Ncxe4 {[%clk 0:02:04]}  Ne7 {[%clk 0:02:17]} 20. Nf6+ {[%clk 0:02:01]} 1-0


[Site "https://www.chess.com"]

[Event "Titled Tuesday Blitz June 6 Late 2023"]
[White "dorpato"]
[Black "Tarnowska, Aleksandra"]
[BlackFideId "1180967"]
[WhiteElo "2062"]
[BlackElo "1776"]
[Result "1-0"]
[Round "10"]
[TimeControl "180+2"]
[Date "2023.06.07"]
[WhiteClock "0:01:08"]
[BlackClock "0:00:01"]
[Board "103"]

1. e4 {[%clk 0:03:00]}  c5 {[%clk 0:02:14]} 2. Nc3 {[%clk 0:02:58]}  e6 {[%clk 0:02:12]} 3. g3 {[%clk 0:02:55]}  Nc6 {[%clk 0:02:11]} 4. Bg2 {[%clk 0:02:54]}  d6 {[%clk 0:02:11]} 5. d3 {[%clk 0:02:54]}  Nf6 {[%clk 0:02:12]} 6. Be3 {[%clk 0:02:53]}  Be7 {[%clk 0:02:12]} 7. f4 {[%clk 0:02:53]}  O-O {[%clk 0:02:12]} 8. Nf3 {[%clk 0:02:53]}  a6 {[%clk 0:02:12]} 9. h3 {[%clk 0:02:52]}  b5 {[%clk 0:02:12]} 10. O-O {[%clk 0:02:52]}  b4 {[%clk 0:02:13]} 11. Ne2 {[%clk 0:02:53]}  d5 {[%clk 0:02:13]} 12. e5 {[%clk 0:02:51]}  Nd7 {[%clk 0:02:13]} 13. g4 {[%clk 0:02:50]}  Re8 {[%clk 0:02:11]} 14. Ng3 {[%clk 0:02:50]}  Qc7 {[%clk 0:02:10]} 15. c3 {[%clk 0:02:50]}  bxc3 {[%clk 0:02:04]} 16. bxc3 {[%clk 0:02:48]}  Rb8 {[%clk 0:02:05]} 17. d4 {[%clk 0:02:46]}  cxd4 {[%clk 0:02:01]} 18. cxd4 {[%clk 0:02:45]}  a5 {[%clk 0:02:01]} 19. f5 {[%clk 0:02:44]}  Bf8 {[%clk 0:01:56]} 20. g5 {[%clk 0:02:42]}  exf5 {[%clk 0:01:25]} 21. Nxf5 {[%clk 0:02:40]}  Ndxe5 {[%clk 0:01:21]} 22. Nxe5 {[%clk 0:02:29]}  Nxe5 {[%clk 0:01:21]} 23. dxe5 {[%clk 0:02:29]}  Qxe5 {[%clk 0:01:22]} 24. Bf4 {[%clk 0:02:24]}  Bc5+ {[%clk 0:00:55]} 25. Kh1 {[%clk 0:02:17]}  Qxf5 {[%clk 0:00:40]} 26. Bxb8 {[%clk 0:02:13]}  Qxg5 {[%clk 0:00:40]} 27. Qf3 {[%clk 0:02:07]}  Be6 {[%clk 0:00:38]} 28. Bf4 {[%clk 0:02:05]}  Qg6 {[%clk 0:00:35]} 29. Rac1 {[%clk 0:02:03]}  Bd4 {[%clk 0:00:27]} 30. Qg3 {[%clk 0:02:00]}  Qh5 {[%clk 0:00:13]} 31. Rcd1 {[%clk 0:01:58]}  Bf6 {[%clk 0:00:07]} 32. Rfe1 {[%clk 0:01:47]}  Rc8 {[%clk 0:00:03]} 33. Qh2 {[%clk 0:01:42]}  h6 {[%clk 0:00:04]} 34. Be5 {[%clk 0:01:33]}  Bg5 {[%clk 0:00:03]} 35. Bf4 {[%clk 0:01:30]}  Rc2 {[%clk 0:00:02]} 36. Bxg5 {[%clk 0:01:27]}  Qxg5 {[%clk 0:00:03]} 37. Rg1 {[%clk 0:01:24]}  Qe3 {[%clk 0:00:02]} 38. Rde1 {[%clk 0:01:20]}  Qf2 {[%clk 0:00:02]} 39. Qb8+ {[%clk 0:01:16]}  Kh7 {[%clk 0:00:02]} 40. Qe5 {[%clk 0:01:16]}  Qh4 {[%clk 0:00:01]} 41. Qe3 {[%clk 0:01:12]}  Rxa2 {[%clk 0:00:01]} 42. Qd3+ {[%clk 0:01:12]}  Kg8 {[%clk 0:00:01]} 43. Bxd5 {[%clk 0:01:08]} 1-0


[Site "https://www.chess.com"]

[Event "Titled Tuesday Blitz June 6 Late 2023"]
[White "Miller, Ike S"]
[Black "Brown, Raehanna"]
[WhiteFideId "2022532"]
[BlackFideId "7402740"]
[WhiteElo "2117"]
[BlackElo "1655"]
[Result "0-1"]
[Round "10"]
[TimeControl "180+2"]
[Date "2023.06.07"]
[WhiteClock "0:00:03"]
[BlackClock "0:00:36"]
[Board "105"]

1. d4 {[%clk 0:02:56]}  Nf6 {[%clk 0:02:59]} 2. c4 {[%clk 0:02:52]}  g6 {[%clk 0:02:58]} 3. Nc3 {[%clk 0:02:53]}  Bg7 {[%clk 0:02:58]} 4. e4 {[%clk 0:02:53]}  d6 {[%clk 0:02:58]} 5. Bd3 {[%clk 0:02:54]}  O-O {[%clk 0:02:57]} 6. Nge2 {[%clk 0:02:45]}  c5 {[%clk 0:02:55]} 7. d5 {[%clk 0:02:44]}  Nbd7 {[%clk 0:02:54]} 8. f4 {[%clk 0:02:37]}  a6 {[%clk 0:02:52]} 9. O-O {[%clk 0:02:30]}  b5 {[%clk 0:02:49]} 10. cxb5 {[%clk 0:02:28]}  axb5 {[%clk 0:02:50]} 11. Bxb5 {[%clk 0:02:29]}  Qa5 {[%clk 0:02:49]} 12. Bc6 {[%clk 0:02:02]}  Rb8 {[%clk 0:02:47]} 13. a4 {[%clk 0:02:02]}  Ba6 {[%clk 0:02:39]} 14. h3 {[%clk 0:01:45]}  Rb4 {[%clk 0:02:31]} 15. Qc2 {[%clk 0:01:41]}  Rfb8 {[%clk 0:02:18]} 16. Ra3 {[%clk 0:01:40]}  Nb6 {[%clk 0:01:59]} 17. e5 {[%clk 0:01:33]}  dxe5 {[%clk 0:01:53]} 18. fxe5 {[%clk 0:01:34]}  Nfd7 {[%clk 0:01:52]} 19. e6 {[%clk 0:00:56]}  fxe6 {[%clk 0:01:50]} 20. dxe6 {[%clk 0:00:52]}  Ne5 {[%clk 0:01:50]} 21. Ne4 {[%clk 0:00:33]}  Nxc6 {[%clk 0:01:40]} 22. Rf7 {[%clk 0:00:32]}  Bxe2 {[%clk 0:01:15]} 23. Qxe2 {[%clk 0:00:28]}  Nd4 {[%clk 0:01:15]} 24. Qg4 {[%clk 0:00:21]}  Nc4 {[%clk 0:01:03]} 25. Rg3 {[%clk 0:00:18]}  Ne5 {[%clk 0:01:01]} 26. Rxg7+ {[%clk 0:00:17]}  Kxg7 {[%clk 0:01:01]} 27. Qf4 {[%clk 0:00:17]}  Ndc6 {[%clk 0:00:57]} 28. Nf6 {[%clk 0:00:14]}  exf6 {[%clk 0:00:54]} 29. Qh6+ {[%clk 0:00:10]}  Kg8 {[%clk 0:00:52]} 30. h4 {[%clk 0:00:02]}  Rxh4 {[%clk 0:00:42]} 31. Qxh4 {[%clk 0:00:02]}  Qe1+ {[%clk 0:00:42]} 32. Kh2 {[%clk 0:00:02]}  Qxc1 {[%clk 0:00:43]} 33. Qe4 {[%clk 0:00:01]}  Qxb2 {[%clk 0:00:37]} 34. e7 {[%clk 0:00:01]}  Nxe7 {[%clk 0:00:37]} 35. Qd5+ {[%clk 0:00:02]}  Nxd5 {[%clk 0:00:37]} 36. Rd3 {[%clk 0:00:03]}  Nxd3 {[%clk 0:00:36]} 0-1


[Site "https://www.chess.com"]

[Event "Titled Tuesday Blitz June 6 Late 2023"]
[White "NtcPou"]
[Black "Howell, David W L"]
[BlackFideId "410608"]
[WhiteElo "2043"]
[BlackElo "2567"]
[Result "0-1"]
[Round "10"]
[TimeControl "180+2"]
[Date "2023.06.07"]
[WhiteClock "0:00:25"]
[BlackClock "0:00:19"]
[Board "107"]

1. e4 {[%clk 0:02:55]}  Nf6 {[%clk 0:02:57]} 2. e5 {[%clk 0:02:54]}  Nd5 {[%clk 0:02:57]} 3. d4 {[%clk 0:02:54]}  d6 {[%clk 0:02:57]} 4. Nf3 {[%clk 0:02:54]}  dxe5 {[%clk 0:02:55]} 5. Nxe5 {[%clk 0:02:51]}  Nd7 {[%clk 0:02:56]} 6. Nf3 {[%clk 0:02:50]}  g6 {[%clk 0:02:52]} 7. c4 {[%clk 0:02:49]}  N5f6 {[%clk 0:02:52]} 8. Be2 {[%clk 0:02:47]}  Bg7 {[%clk 0:02:52]} 9. O-O {[%clk 0:02:47]}  O-O {[%clk 0:02:53]} 10. Nc3 {[%clk 0:02:47]}  b6 {[%clk 0:02:53]} 11. a4 {[%clk 0:02:44]}  Bb7 {[%clk 0:02:46]} 12. a5 {[%clk 0:02:43]}  bxa5 {[%clk 0:02:46]} 13. Rxa5 {[%clk 0:02:40]}  c5 {[%clk 0:02:45]} 14. Qa4 {[%clk 0:02:37]}  cxd4 {[%clk 0:02:25]} 15. Nxd4 {[%clk 0:02:31]}  Nb6 {[%clk 0:02:24]} 16. Qb5 {[%clk 0:02:18]}  Qxd4 {[%clk 0:02:22]} 17. c5 {[%clk 0:02:19]}  Rfc8 {[%clk 0:01:35]} 18. cxb6 {[%clk 0:02:15]}  Qxb6 {[%clk 0:01:34]} 19. Qxb6 {[%clk 0:02:06]}  axb6 {[%clk 0:01:35]} 20. Rb5 {[%clk 0:02:06]}  Nd7 {[%clk 0:01:28]} 21. Bd2 {[%clk 0:01:25]}  Bxc3 {[%clk 0:01:11]} 22. Bxc3 {[%clk 0:01:22]}  Ba6 {[%clk 0:01:12]} 23. Rd5 {[%clk 0:01:18]}  Bxe2 {[%clk 0:01:10]} 24. Rxd7 {[%clk 0:01:17]}  Bxf1 {[%clk 0:01:10]} 25. Kxf1 {[%clk 0:01:18]}  Kf8 {[%clk 0:01:06]} 26. Bb4 {[%clk 0:01:15]}  Re8 {[%clk 0:01:02]} 27. Rb7 {[%clk 0:01:14]}  Ra6 {[%clk 0:00:59]} 28. Ba3 {[%clk 0:01:11]}  f6 {[%clk 0:00:59]} 29. Ke2 {[%clk 0:01:12]}  Kf7 {[%clk 0:00:59]} 30. Ke3 {[%clk 0:01:04]}  h5 {[%clk 0:00:59]} 31. h3 {[%clk 0:00:57]}  g5 {[%clk 0:00:57]} 32. f4 {[%clk 0:00:57]}  gxf4+ {[%clk 0:00:48]} 33. Kxf4 {[%clk 0:00:56]}  h4 {[%clk 0:00:45]} 34. Kg4 {[%clk 0:00:54]}  Ra4+ {[%clk 0:00:38]} 35. Kf3 {[%clk 0:00:53]}  Rd4 {[%clk 0:00:36]} 36. Rxb6 {[%clk 0:00:51]}  Red8 {[%clk 0:00:36]} 37. Rb7 {[%clk 0:00:50]}  R8d7 {[%clk 0:00:35]} 38. Rb5 {[%clk 0:00:48]}  Rd3+ {[%clk 0:00:35]} 39. Kf2 {[%clk 0:00:46]}  Rd2+ {[%clk 0:00:35]} 40. Kf3 {[%clk 0:00:46]}  R7d3+ {[%clk 0:00:34]} 41. Kg4 {[%clk 0:00:45]}  Rxg2+ {[%clk 0:00:33]} 42. Kxh4 {[%clk 0:00:44]}  Kg6 {[%clk 0:00:33]} 43. Rb4 {[%clk 0:00:37]}  e5 {[%clk 0:00:21]} 44. Rg4+ {[%clk 0:00:24]}  Rxg4+ {[%clk 0:00:21]} 45. hxg4 {[%clk 0:00:25]}  Rb3 {[%clk 0:00:19]} 0-1


[Site "https://www.chess.com"]

[Event "Titled Tuesday Blitz June 6 Late 2023"]
[White "Xiong, Jeffery"]
[Black "Lazavik, Denis"]
[WhiteFideId "2047640"]
[BlackFideId "13515110"]
[WhiteElo "2726"]
[BlackElo "2560"]
[Result "1-0"]
[Round "11"]
[TimeControl "180+2"]
[Date "2023.06.07"]
[WhiteClock "0:00:47"]
[BlackClock "0:00:01"]
[Board "4"]

1. e4 {[%clk 0:03:00]}  c5 {[%clk 0:03:00]} 2. Nf3 {[%clk 0:03:01]}  e6 {[%clk 0:03:00]} 3. c3 {[%clk 0:03:01]}  d5 {[%clk 0:02:58]} 4. e5 {[%clk 0:03:01]}  d4 {[%clk 0:02:56]} 5. g3 {[%clk 0:03:02]}  Nc6 {[%clk 0:02:54]} 6. Bg2 {[%clk 0:03:02]}  Qc7 {[%clk 0:02:54]} 7. Qe2 {[%clk 0:03:02]}  Nge7 {[%clk 0:02:54]} 8. O-O {[%clk 0:02:49]}  Ng6 {[%clk 0:02:51]} 9. Re1 {[%clk 0:02:27]}  d3 {[%clk 0:02:28]} 10. Qe4 {[%clk 0:02:22]}  Be7 {[%clk 0:02:23]} 11. h4 {[%clk 0:02:21]}  h5 {[%clk 0:02:22]} 12. Na3 {[%clk 0:02:20]}  a6 {[%clk 0:02:14]} 13. Qxd3 {[%clk 0:02:14]}  Ngxe5 {[%clk 0:02:11]} 14. Nxe5 {[%clk 0:02:14]}  Nxe5 {[%clk 0:02:11]} 15. Qe2 {[%clk 0:02:15]}  Ng4 {[%clk 0:02:05]} 16. Nc4 {[%clk 0:02:08]}  O-O {[%clk 0:01:44]} 17. d3 {[%clk 0:02:06]}  f6 {[%clk 0:01:15]} 18. f3 {[%clk 0:02:00]}  Ne5 {[%clk 0:00:53]} 19. Bf4 {[%clk 0:01:50]}  Bd6 {[%clk 0:00:50]} 20. Nxe5 {[%clk 0:01:50]}  fxe5 {[%clk 0:00:49]} 21. Bxe5 {[%clk 0:01:51]}  Rf5 {[%clk 0:00:37]} 22. Bxd6 {[%clk 0:01:49]}  Qxd6 {[%clk 0:00:38]} 23. f4 {[%clk 0:01:50]}  g6 {[%clk 0:00:31]} 24. Bh3 {[%clk 0:01:46]}  Rd5 {[%clk 0:00:20]} 25. Rad1 {[%clk 0:01:38]}  Bd7 {[%clk 0:00:20]} 26. Bxe6+ {[%clk 0:01:36]}  Bxe6 {[%clk 0:00:20]} 27. Qxe6+ {[%clk 0:01:37]}  Qxe6 {[%clk 0:00:18]} 28. Rxe6 {[%clk 0:01:38]}  Kf7 {[%clk 0:00:18]} 29. Re3 {[%clk 0:01:37]}  Rad8 {[%clk 0:00:18]} 30. Kf2 {[%clk 0:01:38]}  a5 {[%clk 0:00:17]} 31. Ke2 {[%clk 0:01:37]}  a4 {[%clk 0:00:17]} 32. Re4 {[%clk 0:01:21]}  b5 {[%clk 0:00:17]} 33. c4 {[%clk 0:01:22]}  bxc4 {[%clk 0:00:17]} 34. Rxc4 {[%clk 0:01:23]}  Rb8 {[%clk 0:00:16]} 35. Rd2 {[%clk 0:01:23]}  Ra8 {[%clk 0:00:16]} 36. Kd1 {[%clk 0:01:22]}  Ke6 {[%clk 0:00:15]} 37. Kc2 {[%clk 0:01:22]}  Kf5 {[%clk 0:00:15]} 38. Re2 {[%clk 0:01:11]}  Kg4 {[%clk 0:00:06]} 39. Re3 {[%clk 0:01:11]}  Rf5 {[%clk 0:00:02]} 40. Kc3 {[%clk 0:00:54]}  Ra6 {[%clk 0:00:03]} 41. Rce4 {[%clk 0:00:52]}  Ra8 {[%clk 0:00:03]} 42. Re5 {[%clk 0:00:48]}  Raf8 {[%clk 0:00:02]} 43. Kc4 {[%clk 0:00:47]}  Rd8 {[%clk 0:00:01]} 44. Kxc5 {[%clk 0:00:47]} 1-0


[Site "https://www.chess.com"]

[Event "Titled Tuesday Blitz June 6 Late 2023"]
[White "Kollars, Dmitrij"]
[Black "Zhigalko, Sergei"]
[WhiteFideId "12909572"]
[BlackFideId "13502956"]
[WhiteElo "2584"]
[BlackElo "2626"]
[Result "1-0"]
[Round "11"]
[TimeControl "180+2"]
[Date "2023.06.07"]
[WhiteClock "0:00:12"]
[BlackClock "0:00:03"]
[Board "7"]

1. e4 {[%clk 0:03:00]}  c5 {[%clk 0:03:00]} 2. Nf3 {[%clk 0:03:01]}  Nc6 {[%clk 0:03:00]} 3. Bb5 {[%clk 0:03:01]}  Nf6 {[%clk 0:03:01]} 4. Nc3 {[%clk 0:03:02]}  Qc7 {[%clk 0:03:01]} 5. O-O {[%clk 0:03:02]}  Nd4 {[%clk 0:03:02]} 6. Re1 {[%clk 0:03:03]}  a6 {[%clk 0:03:02]} 7. Bf1 {[%clk 0:03:03]}  e5 {[%clk 0:03:03]} 8. Nd5 {[%clk 0:03:01]}  Nxd5 {[%clk 0:03:02]} 9. exd5 {[%clk 0:03:02]}  d6 {[%clk 0:03:03]} 10. Nxd4 {[%clk 0:03:02]}  cxd4 {[%clk 0:03:03]} 11. c3 {[%clk 0:02:58]}  dxc3 {[%clk 0:03:03]} 12. bxc3 {[%clk 0:02:59]}  Be7 {[%clk 0:03:04]} 13. d4 {[%clk 0:02:59]}  O-O {[%clk 0:03:03]} 14. dxe5 {[%clk 0:02:58]}  dxe5 {[%clk 0:03:04]} 15. c4 {[%clk 0:02:55]}  Bf5 {[%clk 0:01:47]} 16. Be3 {[%clk 0:02:47]}  Bb4 {[%clk 0:01:33]} 17. Re2 {[%clk 0:02:42]}  Rac8 {[%clk 0:01:14]} 18. Rc1 {[%clk 0:02:04]}  Qa5 {[%clk 0:00:40]} 19. Qb3 {[%clk 0:02:01]}  Rfd8 {[%clk 0:00:30]} 20. Rb2 {[%clk 0:01:52]}  Bc5 {[%clk 0:00:22]} 21. Bxc5 {[%clk 0:01:48]}  Qxc5 {[%clk 0:00:15]} 22. Qxb7 {[%clk 0:01:47]}  a5 {[%clk 0:00:16]} 23. Rd1 {[%clk 0:01:12]}  h6 {[%clk 0:00:14]} 24. Qb6 {[%clk 0:01:07]}  Qa3 {[%clk 0:00:12]} 25. Qb3 {[%clk 0:01:07]}  Qc5 {[%clk 0:00:12]} 26. Qe3 {[%clk 0:01:00]}  f6 {[%clk 0:00:07]} 27. Rb5 {[%clk 0:00:59]}  Qc7 {[%clk 0:00:04]} 28. c5 {[%clk 0:00:53]}  Bd7 {[%clk 0:00:05]} 29. d6 {[%clk 0:00:52]}  Qa7 {[%clk 0:00:04]} 30. Rb6 {[%clk 0:00:48]}  Be6 {[%clk 0:00:04]} 31. c6 {[%clk 0:00:45]}  Kh8 {[%clk 0:00:02]} 32. Qc5 {[%clk 0:00:35]}  e4 {[%clk 0:00:01]} 33. Rc1 {[%clk 0:00:27]}  e3 {[%clk 0:00:01]} 34. c7 {[%clk 0:00:24]}  exf2+ {[%clk 0:00:01]} 35. Kxf2 {[%clk 0:00:19]}  Re8 {[%clk 0:00:01]} 36. Ba6 {[%clk 0:00:19]}  Bd7 {[%clk 0:00:01]} 37. Bxc8 {[%clk 0:00:19]}  Bxc8 {[%clk 0:00:02]} 38. Qc6 {[%clk 0:00:17]}  Re5 {[%clk 0:00:01]} 39. Rc5 {[%clk 0:00:14]}  Re6 {[%clk 0:00:01]} 40. Rcb5 {[%clk 0:00:13]}  Kh7 {[%clk 0:00:01]} 41. Qc2+ {[%clk 0:00:12]}  f5 {[%clk 0:00:01]} 42. Qc5 {[%clk 0:00:13]}  Rf6 {[%clk 0:00:01]} 43. Rc6 {[%clk 0:00:12]}  Qa8 {[%clk 0:00:01]} 44. Rxa5 {[%clk 0:00:12]}  Qb7 {[%clk 0:00:01]} 45. Qb6 {[%clk 0:00:12]}  Qxb6+ {[%clk 0:00:01]} 46. Rxb6 {[%clk 0:00:13]}  f4 {[%clk 0:00:02]} 47. Ra8 {[%clk 0:00:13]}  Be6 {[%clk 0:00:01]} 48. c8=Q {[%clk 0:00:11]}  Bxc8 {[%clk 0:00:02]} 49. Rxc8 {[%clk 0:00:12]}  Rxd6 {[%clk 0:00:03]} 50. Rxd6 {[%clk 0:00:12]} 1-0


[Site "https://www.chess.com"]

[Event "Titled Tuesday Blitz June 6 Late 2023"]
[White "Indjic, Aleksandar"]
[Black "Paravyan, David"]
[WhiteFideId "911925"]
[BlackFideId "4194985"]
[WhiteElo "2614"]
[BlackElo "2563"]
[Result "0-1"]
[Round "11"]
[TimeControl "180+2"]
[Date "2023.06.07"]
[WhiteClock "0:00:01"]
[BlackClock "0:01:23"]
[Board "8"]

1. d4 {[%clk 0:03:00]}  d5 {[%clk 0:02:59]} 2. c4 {[%clk 0:03:00]}  e6 {[%clk 0:02:59]} 3. Nc3 {[%clk 0:02:59]}  Nf6 {[%clk 0:03:00]} 4. Nf3 {[%clk 0:02:59]}  c5 {[%clk 0:02:59]} 5. e3 {[%clk 0:02:58]}  Nc6 {[%clk 0:02:59]} 6. a3 {[%clk 0:02:56]}  Ne4 {[%clk 0:02:59]} 7. Bd3 {[%clk 0:02:54]}  Nxc3 {[%clk 0:02:53]} 8. bxc3 {[%clk 0:02:55]}  Bd6 {[%clk 0:02:54]} 9. O-O {[%clk 0:02:53]}  O-O {[%clk 0:02:54]} 10. e4 {[%clk 0:02:53]}  dxe4 {[%clk 0:02:54]} 11. Bxe4 {[%clk 0:02:52]}  Na5 {[%clk 0:02:55]} 12. Rb1 {[%clk 0:02:46]}  h6 {[%clk 0:02:51]} 13. Qe2 {[%clk 0:02:42]}  Qc7 {[%clk 0:02:44]} 14. Ne5 {[%clk 0:02:40]}  f5 {[%clk 0:02:25]} 15. Bd3 {[%clk 0:02:39]}  Bxe5 {[%clk 0:02:21]} 16. dxe5 {[%clk 0:02:32]}  b6 {[%clk 0:02:21]} 17. h4 {[%clk 0:01:57]}  Bb7 {[%clk 0:02:20]} 18. Bf4 {[%clk 0:01:53]}  Rad8 {[%clk 0:02:19]} 19. f3 {[%clk 0:01:52]}  Rd7 {[%clk 0:02:12]} 20. Bc2 {[%clk 0:01:49]}  Ba6 {[%clk 0:02:11]} 21. Rb5 {[%clk 0:01:48]}  Bxb5 {[%clk 0:02:04]} 22. cxb5 {[%clk 0:01:49]}  c4 {[%clk 0:02:03]} 23. a4 {[%clk 0:01:47]}  Qc5+ {[%clk 0:02:03]} 24. Kh2 {[%clk 0:01:44]}  Nb3 {[%clk 0:01:56]} 25. g4 {[%clk 0:01:43]}  fxg4 {[%clk 0:01:52]} 26. Qe4 {[%clk 0:01:34]}  Rxf4 {[%clk 0:01:35]} 27. Qh7+ {[%clk 0:01:32]}  Kf7 {[%clk 0:01:27]} 28. Bg6+ {[%clk 0:01:20]}  Ke7 {[%clk 0:01:27]} 29. Qg8 {[%clk 0:01:14]}  Rf8 {[%clk 0:01:24]} 30. Qxg7+ {[%clk 0:00:01]}  Kd8 {[%clk 0:01:24]} 31. Kg3 {[%clk 0:00:01]}  Rxg7 {[%clk 0:01:23]} 0-1


[Site "https://www.chess.com"]

[Event "Titled Tuesday Blitz June 6 Late 2023"]
[White "Svane, Frederik"]
[Black "Gritsenko, Nikolai"]
[WhiteFideId "12923044"]
[BlackFideId "14112493"]
[WhiteElo "2502"]
[BlackElo "2389"]
[Result "1-0"]
[Round "11"]
[TimeControl "180+2"]
[Date "2023.06.07"]
[WhiteClock "0:00:12"]
[BlackClock "0:00:09"]
[Board "13"]

1. c4 {[%clk 0:03:00]}  e5 {[%clk 0:02:59]} 2. g3 {[%clk 0:02:56]}  Nc6 {[%clk 0:02:59]} 3. Nc3 {[%clk 0:02:54]}  g6 {[%clk 0:03:00]} 4. Bg2 {[%clk 0:02:54]}  Bg7 {[%clk 0:03:00]} 5. e4 {[%clk 0:02:51]}  d6 {[%clk 0:02:59]} 6. Nge2 {[%clk 0:02:51]}  f5 {[%clk 0:02:56]} 7. d3 {[%clk 0:02:48]}  Nf6 {[%clk 0:02:54]} 8. O-O {[%clk 0:02:47]}  h6 {[%clk 0:02:53]} 9. Rb1 {[%clk 0:02:42]}  O-O {[%clk 0:02:52]} 10. b4 {[%clk 0:02:42]}  Ne7 {[%clk 0:02:41]} 11. h3 {[%clk 0:02:31]}  fxe4 {[%clk 0:02:27]} 12. dxe4 {[%clk 0:02:30]}  Be6 {[%clk 0:02:27]} 13. Qd3 {[%clk 0:02:10]}  Qd7 {[%clk 0:02:22]} 14. Kh2 {[%clk 0:02:08]}  h5 {[%clk 0:02:12]} 15. Be3 {[%clk 0:01:04]}  Rf7 {[%clk 0:02:03]} 16. c5 {[%clk 0:00:57]}  Raf8 {[%clk 0:01:43]} 17. cxd6 {[%clk 0:00:53]}  cxd6 {[%clk 0:01:43]} 18. Rbd1 {[%clk 0:00:52]}  Nc8 {[%clk 0:01:42]} 19. f4 {[%clk 0:00:42]}  h4 {[%clk 0:01:32]} 20. f5 {[%clk 0:00:36]}  gxf5 {[%clk 0:01:14]} 21. exf5 {[%clk 0:00:32]}  Bxf5 {[%clk 0:00:52]} 22. Qxf5 {[%clk 0:00:29]}  hxg3+ {[%clk 0:00:46]} 23. Nxg3 {[%clk 0:00:28]}  Qe8 {[%clk 0:00:41]} 24. Nd5 {[%clk 0:00:20]}  Ne7 {[%clk 0:00:41]} 25. Nxf6+ {[%clk 0:00:19]}  Rxf6 {[%clk 0:00:40]} 26. Qd3 {[%clk 0:00:19]}  Rg6 {[%clk 0:00:28]} 27. Rxf8+ {[%clk 0:00:18]}  Qxf8 {[%clk 0:00:27]} 28. Rf1 {[%clk 0:00:18]}  Qc8 {[%clk 0:00:25]} 29. Nf5 {[%clk 0:00:15]}  Nxf5 {[%clk 0:00:21]} 30. Bd5+ {[%clk 0:00:13]}  Kh7 {[%clk 0:00:19]} 31. Rxf5 {[%clk 0:00:13]}  Bh6 {[%clk 0:00:10]} 32. Rf7+ {[%clk 0:00:12]}  Bg7 {[%clk 0:00:09]} 33. Be4 {[%clk 0:00:12]} 1-0


[Site "https://www.chess.com"]